bitfinex/quotes_SOLUSD_20250611
["timestamp","ask_amount","ask_price","bid_price","bid_amount"]
[1749664350379,14.24873885,164.14,164.06,1.5932]
[1749664350380,20.34061708,164.16,164.06,1.5932]
[1749664350783,14.24873885,164.12,164.08,14.24873885]
[1749664350986,20.34061708,164.16,164.08,14.24873885]
[1749664351304,14.24873885,164.14,164.09,14.24873885]
[1749664351589,14.24873885,164.16,164.12,14.24873885]
[1749664351969,6.7,164.18,164.12,14.24873885]
[1749664352174,6.7,164.18,164.13,14.24873885]
[1749664352369,14.24873885,164.17,164.12,14.24873885]
[1749664355178,6.7,164.18,164.12,14.24873885]
[1749664355381,14.24873885,164.17,164.12,14.24873885]
[1749664355792,14.24873885,164.17,164.13,14.24873885]
[1749664355992,6.7,164.18,164.14,14.24873885]
[1749664356198,6.7,164.18,164.1,111.66]
[1749664356199,6.7,164.18,164.15,14.24873885]
[1749664356394,14.24873885,164.17,164.12,14.24873885]
[1749664356706,14.24873885,164.13,164.08,14.24873885]
[1749664357010,14.24873885,164.14,164.09,14.24873885]
[1749664357412,6.09190229,164.16,164.09,14.24873885]
[1749664357595,14.24873885,164.14,164.07,24.36]
[1749664357792,14.24873885,164.13,164.06,1.5932]
[1749664358110,14.24873885,164.13,164.09,14.24873885]
[1749664358689,14.24873885,164.12,164.08,14.24873885]
[1749664358996,14.24873885,164.12,164.07,14.24873885]
[1749664359923,14.24873885,164.11,164.06,1.5932]
[1749664360107,20.34035678,164.16,164.07,14.24873885]
[1749664360303,14.24873885,164.11,164.07,14.24873885]
[1749664360826,1.5786,164.17,164.07,14.24873885]
[1749664361007,14.24873885,164.13,164.09,14.24873885]
[1749664361218,14.24873885,164.13,164.08,14.24873885]
[1749664362597,6.09173911,164.16,164.1,14.24873885]
[1749664362797,14.24873885,164.14,164.1,14.24873885]
[1749664363108,14.24873885,164.15,164.1,14.24873885]
[1749664363306,14.24873885,164.14,164.1,14.24873885]
[1749664363523,14.24873885,164.14,164.11,2.06450784]
[1749664363701,14.24873885,164.14,164.09,14.24873885]
[1749664363899,14.24873885,164.14,164.1,2.06448987]
[1749664364218,14.24873885,164.14,164.11,2.06448987]
[1749664364405,14.24873885,164.14,164.12,2.07249771]
[1749664364605,6.09180774,164.16,164.13,2.07249771]
[1749664364828,14.24873885,164.14,164.1,14.24873885]
[1749664365013,14.24873885,164.14,164.11,2.07248979]
[1749664365322,6.09180774,164.16,164.12,2.0725133]
[1749664365323,14.24873885,164.13,164.12,2.0725133]
[1749664365625,14.24873885,164.13,164.12,2.07256283]
[1749664365803,14.24873885,164.13,164.12,2.0725603]
[1749664366237,14.24873885,164.13,164.12,2.07262685]
[1749664366832,14.24873885,164.13,164.07,14.24873885]
[1749664367033,14.24873885,164.11,164.06,1.5932]
[1749664367200,14.24873885,164.11,164.04,6.3004]
[1749664367201,14.24873885,164.07,164.02,1.5857]
[1749664367423,14.24873885,164.05,164.0,14.24873885]
[1749664367749,14.24873885,164.05,164.01,14.24873885]
[1749664367953,14.24873885,164.03,163.99,6.4126]
[1749664368326,14.24873885,164.03,164.0,2.07357628]
[1749664368530,12.79519463,164.07,164.01,2.07357628]
[1749664368531,6.7,164.07,164.01,2.07357628]
[1749664368736,14.24873885,164.04,164.02,2.07357628]
[1749664368944,14.24873885,164.04,164.03,2.07364057]
[1749664369130,14.24873885,164.04,164.03,2.07364088]
[1749664369330,14.24873885,164.04,164.03,2.07363735]
[1749664369637,14.24873885,164.04,164.03,2.07363383]
[1749664370348,14.24873885,164.04,164.03,2.07364422]
[1749664371178,6.7,164.07,163.93,2.49693469]
[1749664371380,32.7,164.07,163.98,14.24873885]
[1749664371561,14.24873885,164.03,163.99,2.07372264]
[1749664371764,14.24873885,164.03,164.0,2.07372416]
[1749664372075,14.24873885,164.03,164.01,2.07372386]
[1749664372274,14.24873885,164.03,164.02,2.07368879]
[1749664372460,32.7,164.07,164.02,2.07366848]
[1749664372668,14.24873885,164.05,164.0,14.24873885]
[1749664373061,14.24873885,164.05,163.98,1.664]
[1749664373263,14.24873885,164.05,164.0,14.24873885]
[1749664374285,14.24873885,164.03,163.99,14.24873885]
[1749664374970,14.24873885,164.04,163.99,14.24873885]
[1749664375659,6.7,164.07,164.01,14.24873885]
[1749664375880,14.24873885,164.05,164.0,14.24873885]
[1749664376079,14.24873885,164.04,164.0,14.24873885]
[1749664376565,14.24873885,164.04,163.98,1.664]
[1749664376885,14.24873885,164.04,164.0,14.24873885]
[1749664377390,14.24873885,164.02,163.97,14.24873885]
[1749664377770,14.24873885,163.99,163.95,6.4055]
[1749664377969,0.42648471,164.05,163.95,20.65423885]
[1749664377970,14.24873885,164.0,163.95,20.65423885]
[1749664378289,0.42648471,164.05,163.96,14.24873885]
[1749664378500,14.24873885,164.0,163.96,14.24873885]
[1749664378696,3.10387677,164.08,163.95,6.4055]
[1749664378910,21.71256484,164.13,164.0,14.24873885]
[1749664379189,14.16863127,164.1,164.01,18.64964886]
[1749664379376,14.24873885,164.06,164.01,14.24873885]
[1749664379559,14.24873885,164.07,164.02,14.24873885]
[1749664380788,14.24873885,164.08,164.03,14.24873885]
[1749664381378,17.25490644,164.08,164.03,14.24873885]
[1749664382892,17.25490644,164.08,164.0,24.38]
[1749664383195,17.25490644,164.08,164.04,14.24873885]
[1749664383392,40.24873885,164.1,164.06,14.24873885]
[1749664383789,6.48,164.13,164.06,14.24873885]
[1749664383790,14.24873885,164.11,164.06,14.24873885]
[1749664383962,6.48,164.13,164.08,14.24873885]
[1749664384169,6.48,164.13,164.09,14.24873885]
[1749664385991,14.24873885,164.1,164.06,14.24873885]
[1749664386475,14.24873885,164.11,164.06,14.24873885]
[1749664386870,3.0548916,164.12,164.06,14.24873885]
[1749664387065,26.82149496,164.13,164.05,24.38]
[1749664387261,26.82149496,164.13,164.08,14.24873885]
[1749664387481,14.24873885,164.12,164.08,14.24873885]
[1749664387681,14.24873885,164.11,164.04,18.64964886]
[1749664387879,12.57275611,164.13,164.03,6.29]
[1749664388079,14.24873885,164.1,164.03,6.29]
[1749664388295,14.24873885,164.1,164.06,14.24873885]
[1749664388781,14.24873885,164.11,164.06,14.24873885]
[1749664389777,14.24873885,164.08,164.03,14.24873885]
[1749664390082,20.34352563,164.08,164.04,14.24873885]
[1749664390282,20.34352563,164.08,164.03,14.24873885]
[1749664390478,14.24873885,164.04,163.98,1.5249]
[1749664390671,14.24873885,164.05,164.01,14.24873885]
[1749664391867,20.34479477,164.05,164.01,14.24873885]
[1749664392972,6.09605592,164.05,164.01,14.24873885]
[1749664393184,20.34369831,164.07,164.02,14.24873885]
[1749664393386,20.34369831,164.07,163.99,18.64964886]
[1749664393596,14.24873885,164.06,164.02,14.24873885]
[1749664394101,20.3441442,164.06,164.02,14.24873885]
[1749664394473,6.094588,164.08,164.02,14.24873885]
[1749664394674,20.34307175,164.09,164.05,14.24873885]
[1749664394900,20.34265561,164.1,164.0,14.24873885]
[1749664395078,20.34265561,164.1,164.06,14.24873885]
[1749664395283,20.34265561,164.1,164.05,14.24873885]
[1749664395483,14.24873885,164.07,164.01,24.38]
[1749664395811,14.24873885,164.06,164.01,38.62873885]
[1749664396109,6.09570252,164.05,164.01,14.24873885]
[1749664396611,14.24873885,164.06,164.01,14.24873885]
[1749664396612,20.34415795,164.06,164.01,14.24873885]
[1749664398785,6.0954191,164.06,164.01,14.24873885]
[1749664399002,6.0954191,164.06,164.02,14.24873885]
[1749664399207,20.34415795,164.06,164.01,14.24873885]
[1749664399414,14.24873885,164.04,164.0,14.24873885]
[1749664399616,14.24873885,164.05,164.0,14.24873885]
[1749664400802,14.24873885,164.06,164.01,14.24873885]
[1749664402313,20.34407755,164.06,164.01,14.24873885]
[1749664402514,14.24873885,164.06,164.02,14.24873885]
[1749664403215,20.34384438,164.07,164.02,14.24873885]
[1749664403398,0.28432314,164.11,164.04,14.24873885]
[1749664403399,20.34295543,164.09,164.04,14.24873885]
[1749664403917,14.24873885,164.07,163.99,18.64964886]
[1749664404221,14.24873885,164.07,164.03,14.24873885]
[1749664404416,14.24873885,164.06,163.99,18.64964886]
[1749664404623,14.24873885,164.06,164.01,14.24873885]
[1749664404962,14.24873885,164.05,164.01,14.24873885]
[1749664405526,14.24873885,164.05,163.98,1.5249]
[1749664405694,14.24873885,164.05,164.01,14.24873885]
[1749664406120,14.24873885,164.05,163.98,1.5249]
[1749664406421,14.24873885,164.05,163.96,105.94964886]
[1749664406422,14.24873885,164.04,163.96,105.94964886]
[1749664406598,14.24873885,164.03,163.98,14.24873885]
[1749664406796,14.24873885,164.03,163.96,105.94964886]
[1749664407009,14.24873885,164.03,163.98,14.24873885]
[1749664407414,6.09588053,164.05,163.99,14.24873885]
[1749664407618,14.24873885,164.04,163.99,14.24873885]
[1749664408396,46.34332685,164.08,164.0,14.24873885]
[1749664408594,32.094588,164.08,164.0,14.24873885]
[1749664408803,14.24873885,164.05,164.01,14.24873885]
[1749664409001,32.094588,164.08,164.01,14.24873885]
[1749664409224,14.24873885,164.06,164.01,14.24873885]
[1749664409826,14.24873885,164.02,163.96,14.24873885]
[1749664410025,14.24873885,164.01,163.96,14.24873885]
[1749664410226,14.24873885,164.02,163.97,14.24873885]
[1749664410926,14.24873885,163.99,163.94,8.0505]
[1749664411107,14.24873885,164.0,163.95,14.24873885]
[1749664411306,14.24873885,164.0,163.96,14.24873885]
[1749664411518,14.24873885,164.03,163.94,26.70014886]
[1749664411831,14.24873885,164.02,163.98,14.24873885]
[1749664412039,14.24873885,164.03,163.98,14.24873885]
[1749664412205,14.24873885,164.04,163.99,14.24873885]
[1749664412509,6.09503569,164.07,163.94,26.70014886]
[1749664412510,6.09503569,164.07,163.94,8.0505]
[1749664412713,14.24873885,164.03,163.98,14.24873885]
[1749664413226,14.24873885,164.03,163.95,18.64964886]
[1749664413422,6.09503569,164.07,164.02,14.24873885]
[1749664413633,20.34420642,164.06,164.01,14.24873885]
[1749664413830,14.24873885,164.05,164.01,14.24873885]
[1749664414136,6.09546757,164.06,164.0,14.24873885]
[1749664414446,14.24873885,164.05,164.0,14.24873885]
[1749664414810,14.24873885,164.04,163.99,14.24873885]
[1749664415217,14.24873885,164.04,163.97,24.38]
[1749664415448,14.24873885,164.04,163.99,14.24873885]
[1749664416245,14.24873885,164.06,163.97,24.38]
[1749664416454,14.24873885,164.06,164.01,14.24873885]
[1749664417116,14.24873885,164.05,164.0,14.24873885]
[1749664417912,6.09537245,164.06,163.95,18.64964886]
[1749664418112,6.23712103,164.07,163.98,14.24873885]
[1749664418415,14.24873885,164.04,163.99,14.24873885]
[1749664419433,14.24873885,164.03,163.99,14.24873885]
[1749664419813,14.24873885,164.03,163.96,24.38]
[1749664420214,6.09604403,164.05,163.96,24.38]
[1749664420524,14.24873885,164.04,163.99,14.24873885]
[1749664421230,6.09495946,164.07,163.99,14.24873885]
[1749664421438,14.24873885,164.04,163.99,14.24873885]
[1749664422212,6.09568541,164.06,163.99,14.24873885]
[1749664422414,14.24873885,164.04,163.99,14.24873885]
[1749664422623,14.24873885,164.04,164.0,14.24873885]
[1749664423111,14.24873885,164.04,163.96,24.38]
[1749664423311,6.09568541,164.06,164.0,14.24873885]
[1749664423511,14.24873885,164.04,164.0,14.24873885]
[1749664423740,14.24873885,164.04,163.96,24.38]
[1749664423741,14.24873885,164.05,164.01,14.24873885]
[1749664423939,14.24873885,164.06,164.01,14.24873885]
[1749664424342,14.24873885,164.08,164.03,14.24873885]
[1749664424549,14.24873885,164.08,163.97,105.94964886]
[1749664424751,14.24873885,164.07,164.02,14.24873885]
[1749664425433,6.09422251,164.09,164.03,14.24873885]
[1749664425633,14.24873885,164.07,164.03,14.24873885]
[1749664426748,14.24873885,164.07,163.97,105.94964886]
[1749664426749,14.24873885,164.08,164.0,14.24873885]
[1749664426928,14.24873885,164.08,164.04,14.24873885]
[1749664427127,6.46,164.1,164.04,14.24873885]
[1749664427335,6.46,164.1,164.05,14.24873885]
[1749664427529,20.70873885,164.1,164.05,14.24873885]
[1749664427835,14.24873885,164.09,164.01,24.38]
[1749664428246,12.55390881,164.1,163.98,7.7671]
[1749664428440,14.24873885,164.05,164.0,14.24873885]
[1749664429650,14.24873885,164.05,164.01,14.24873885]
[1749664429955,14.24873885,164.06,164.01,14.24873885]
[1749664430452,14.24873885,164.08,163.98,7.7671]
[1749664430631,14.24873885,164.03,163.98,7.7671]
[1749664430945,14.24873885,164.04,163.99,14.24873885]
[1749664431155,14.24873885,164.04,164.0,14.24873885]
[1749664432137,14.24873885,164.03,163.98,7.7671]
[1749664432335,14.24873885,164.03,163.99,14.24873885]
[1749664432550,6.09597112,164.05,163.99,14.24873885]
[1749664432845,14.24873885,164.03,163.99,14.24873885]
[1749664433051,14.24873885,164.04,163.99,14.24873885]
[1749664433226,14.24873885,164.03,163.99,14.24873885]
[1749664434435,6.09597112,164.05,163.99,14.24873885]
[1749664434635,14.24873885,164.04,164.0,14.24873885]
[1749664435657,14.24873885,164.06,164.02,14.24873885]
[1749664436555,14.24873885,164.06,163.98,7.7671]
[1749664436738,6.09470138,164.08,163.98,7.7671]
[1749664436932,14.24873885,164.05,164.0,14.24873885]
[1749664437133,6.09470138,164.08,164.0,14.24873885]
[1749664437357,6.09470138,164.08,163.98,7.7671]
[1749664437562,6.09470138,164.08,164.0,14.24873885]
[1749664437865,14.24873885,164.05,164.0,14.24873885]
[1749664438432,14.24873885,164.05,163.98,7.7671]
[1749664438633,14.24873885,164.04,164.0,14.24873885]
[1749664438854,14.24873885,164.05,164.0,14.24873885]
[1749664439657,14.24873885,164.05,163.98,7.7671]
[1749664440037,14.24873885,164.05,164.01,14.24873885]
[1749664440557,14.24873885,164.05,164.0,14.24873885]
[1749664440739,6.09514982,164.07,163.99,14.24873885]
[1749664441055,6.09580994,164.05,163.99,14.24873885]
[1749664441260,14.24873885,164.04,163.99,14.24873885]
[1749664441755,14.24873885,164.04,164.0,14.24873885]
[1749664441970,14.24873885,164.05,164.0,14.24873885]
[1749664442147,14.24873885,164.04,163.98,7.7671]
[1749664442489,14.24873885,164.01,163.96,14.24873885]
[1749664442646,14.24873885,164.02,163.97,14.24873885]
[1749664443038,14.24873885,164.01,163.95,18.64964886]
[1749664443264,14.24873885,164.01,163.97,14.24873885]
[1749664443473,6.09652689,164.03,163.98,14.24873885]
[1749664443644,14.24873885,164.02,163.98,14.24873885]
[1749664443971,14.24873885,164.02,163.95,18.64964886]
[1749664444159,6.09652689,164.03,163.95,18.64964886]
[1749664444464,14.24873885,164.02,163.98,14.24873885]
[1749664444772,14.24873885,164.02,163.95,18.64964886]
[1749664445339,14.24873885,163.99,163.94,1.6061]
[1749664445544,6.09702852,164.02,163.94,1.6061]
[1749664445758,6.09702852,164.02,163.95,14.24873885]
[1749664446063,6.09702852,164.02,163.94,1.6061]
[1749664446232,14.24873885,163.98,163.94,1.6061]
[1749664446432,27.6061,164.05,163.95,14.24873885]
[1749664446639,14.24873885,164.0,163.94,1.6061]
[1749664448348,14.24873885,163.98,163.94,15.85483885]
[1749664449239,14.24873885,163.97,163.94,1.6061]
[1749664449638,14.24873885,163.98,163.94,15.85483885]
[1749664449857,6.09764443,164.0,163.93,9.01333469]
[1749664450163,6.09764443,164.0,163.93,2.49693469]
[1749664450383,14.24873885,163.94,163.93,2.49693469]
[1749664452267,1.5304,163.97,163.93,2.49693469]
[1749664452562,13.096,164.06,163.93,2.49693469]
[1749664452745,7.08,164.06,164.0,14.24873885]
[1749664452947,1.5304,164.07,164.0,14.24873885]
[1749664453168,7.62544441,164.07,164.0,14.24873885]
[1749664453341,14.24873885,164.04,163.95,18.64964886]
[1749664453542,14.24873885,164.03,163.99,14.24873885]
[1749664453866,14.24873885,164.03,163.96,2.14618628]
[1749664453867,38.46996702,164.07,164.0,2.14642679]
[1749664454054,14.24873885,164.01,163.96,14.24873885]
[1749664454266,14.24873885,164.0,163.97,2.14655403]
[1749664454441,14.24873885,164.0,163.98,2.14655392]
[1749664454639,14.24873885,164.0,163.99,2.14655366]
[1749664454837,26.0,164.04,163.95,14.24873885]
[1749664455040,14.24873885,164.0,163.96,2.14665409]
[1749664455262,14.24873885,164.0,163.97,2.14654406]
[1749664455460,14.24873885,164.0,163.98,2.14654406]
[1749664455664,14.24873885,164.0,163.99,2.14650324]
[1749664455853,14.24873885,164.01,163.99,2.14650324]
[1749664456055,6.3749886,164.07,164.0,2.14650324]
[1749664456250,14.24873885,164.02,164.01,2.14650324]
[1749664456451,6.3749886,164.07,164.01,2.14444968]
[1749664456643,27.5304,164.07,164.02,2.14437081]
[1749664456963,27.5304,164.07,163.99,14.24873885]
[1749664457272,14.24873885,164.03,163.99,14.24873885]
[1749664457566,14.24873885,164.03,164.0,2.14435479]
[1749664457780,14.24873885,164.04,164.01,2.14435453]
[1749664457951,14.24873885,164.03,163.98,24.38]
[1749664458271,14.24873885,164.02,163.99,2.14434479]
[1749664458467,1.5304,164.07,164.0,2.14434479]
[1749664458776,14.24873885,164.05,164.01,2.14434671]
[1749664458979,10.10269142,164.12,164.04,14.24873885]
[1749664459147,14.24873885,164.11,164.07,14.24873885]
[1749664459867,24.35143027,164.12,164.07,14.24873885]
[1749664460239,10.10269142,164.12,164.08,14.24873885]
[1749664460457,3.02269142,164.12,164.08,14.24873885]
[1749664460673,14.24873885,164.12,164.08,14.24873885]
[1749664460845,13.2202,164.19,164.09,14.24873885]
[1749664461052,14.24873885,164.14,164.1,14.24873885]
[1749664461262,16.31775899,164.19,164.1,14.24873885]
[1749664461461,16.31775899,164.19,164.11,14.24873885]
[1749664461681,16.31775899,164.19,164.08,1.6247]
[1749664461880,14.24873885,164.14,164.09,14.24873885]
[1749664462177,14.24873885,164.13,164.08,1.6247]
[1749664462491,14.24873885,164.12,164.08,15.87343885]
[1749664462789,14.24873885,164.13,164.08,15.87343885]
[1749664462997,14.24873885,164.13,164.08,1.6247]
[1749664463163,14.24873885,164.13,164.08,15.87343885]
[1749664463363,0.42648471,164.18,164.08,15.87343885]
[1749664463579,14.24873885,164.13,164.09,14.24873885]
[1749664464386,14.24873885,164.13,164.08,15.87343885]
[1749664464779,14.24873885,164.13,164.09,14.24873885]
[1749664465384,14.24873885,164.13,164.08,15.87343885]
[1749664465578,14.24873885,164.13,164.09,14.24873885]
[1749664465881,0.42648471,164.18,164.09,14.24873885]
[1749664466084,14.24873885,164.14,164.09,14.24873885]
[1749664466464,14.24873885,164.13,164.09,14.24873885]
[1749664467171,42.31775899,164.19,164.1,14.24873885]
[1749664467374,14.24873885,164.15,164.1,14.24873885]
[1749664467993,14.24873885,164.16,164.11,14.24873885]
[1749664468181,36.17755899,164.19,164.12,14.24873885]
[1749664468489,14.24873885,164.16,164.11,14.24873885]
[1749664468872,14.24873885,164.16,164.12,14.24873885]
[1749664469267,10.17755899,164.19,164.12,14.24873885]
[1749664469462,14.24873885,164.17,164.12,14.24873885]
[1749664470093,14.24873885,164.16,164.12,14.24873885]
[1749664470393,14.24873885,164.14,164.1,38.60873885]
[1749664470991,14.24873885,164.14,164.11,26.0]
[1749664471171,14.24873885,164.15,164.11,26.0]
[1749664472092,14.24873885,164.15,164.1,38.60873885]
[1749664472396,6.09124326,164.18,164.11,14.24873885]
[1749664472693,6.09124326,164.18,164.1,24.36]
[1749664472694,6.09124326,164.18,164.12,14.24873885]
[1749664472895,16.26817927,164.19,164.13,14.24873885]
[1749664473102,24.42629784,164.19,164.14,14.24873885]
[1749664473308,14.24873885,164.21,164.16,14.24873885]
[1749664473476,14.24873885,164.18,164.14,14.24873885]
[1749664473665,6.08902149,164.23,164.13,20.60563885]
[1749664473666,14.24873885,164.17,164.13,20.60563885]
[1749664473997,14.24873885,164.2,164.16,14.24873885]
[1749664474183,14.24873885,164.19,164.15,14.24873885]
[1749664475095,20.33950528,164.19,164.15,14.24873885]
[1749664475280,20.33950528,164.19,164.1,24.36]
[1749664475473,20.33950528,164.19,164.15,14.24873885]
[1749664476269,6.09076643,164.19,164.1,111.66]
[1749664476483,20.33950528,164.19,164.15,14.24873885]
[1749664477178,2.97779092,164.19,164.15,14.24873885]
[1749664477379,14.24873885,164.21,164.17,14.24873885]
[1749664477700,6.08939227,164.22,164.17,14.24873885]
[1749664477870,14.24873885,164.21,164.17,14.24873885]
[1749664478071,6.08939227,164.22,164.17,14.24873885]
[1749664478267,6.08939227,164.22,164.12,24.36]
[1749664478268,6.08939227,164.22,164.18,14.24873885]
[1749664478490,20.33813112,164.22,164.17,14.24873885]
[1749664478794,20.33813112,164.22,164.12,24.36]
[1749664478994,20.33813112,164.22,164.17,14.24873885]
[1749664480579,14.24873885,164.21,164.17,14.24873885]
[1749664480780,9.11022839,164.22,164.15,14.24873885]
[1749664480781,14.24873885,164.2,164.15,14.24873885]
[1749664481791,6.0905049,164.19,164.15,14.24873885]
[1749664483400,14.24873885,164.2,164.15,14.24873885]
[1749664483905,14.24873885,164.2,164.11,24.36]
[1749664484082,14.24873885,164.2,164.15,14.24873885]
[1749664485203,14.24873885,164.19,164.15,14.24873885]
[1749664485401,6.09087586,164.18,164.11,24.36]
[1749664485701,6.09087586,164.18,164.14,14.24873885]
[1749664486081,6.09087586,164.18,164.15,14.24873885]
[1749664486402,6.0906382,164.19,164.15,14.24873885]
[1749664486991,20.33937705,164.19,164.15,14.24873885]
[1749664487197,6.0906382,164.19,164.15,14.24873885]
[1749664487401,20.33892468,164.2,164.16,14.24873885]
[1749664487783,6.08989417,164.21,164.16,14.24873885]
[1749664488107,14.24873885,164.2,164.16,14.24873885]
[1749664488508,14.74873885,164.2,164.16,14.24873885]
[1749664489010,20.8390078,164.2,164.15,14.24873885]
[1749664489300,20.8390078,164.2,164.16,14.24873885]
[1749664489505,14.74873885,164.2,164.16,14.24873885]
[1749664490204,0.5,164.2,164.16,14.24873885]
[1749664490597,20.83895261,164.2,164.16,14.24873885]
[1749664490904,14.74873885,164.2,164.16,14.24873885]
[1749664491104,0.5,164.2,164.16,14.24873885]
[1749664491785,6.59015368,164.2,164.17,14.24873885]
[1749664492006,0.5,164.2,164.17,14.24873885]
[1749664492391,0.5,164.2,164.19,14.24873885]
[1749664492788,0.5,164.2,164.16,1.5649]
[1749664492991,0.5,164.2,164.17,14.24873885]
[1749664493311,0.5,164.2,164.16,1.5649]
[1749664493312,0.5,164.2,164.18,14.24873885]
[1749664495299,0.5,164.2,164.19,14.24873885]
[1749664497301,0.5,164.2,164.17,24.36]
[1749664497496,0.5,164.2,164.19,14.24873885]
[1749664500735,0.5,164.2,164.19,32.89838771]
[1749664501035,7.08,164.26,164.2,18.64964886]
[1749664501253,7.08,164.26,164.17,24.36]
[1749664501254,7.08,164.26,164.18,18.64964886]
[1749664501531,14.24873885,164.23,164.19,14.24873885]
[1749664501742,14.24873885,164.24,164.19,14.24873885]
[1749664502225,14.24873885,164.23,164.18,14.24873885]
[1749664502546,14.24873885,164.21,164.16,22.47183885]
[1749664502724,26.5,164.23,164.16,14.24873885]
[1749664502903,14.24873885,164.2,164.16,14.24873885]
[1749664503428,20.33852501,164.21,164.16,14.24873885]
[1749664503810,0.5,164.23,164.19,14.24873885]
[1749664504013,14.74873885,164.23,164.19,14.24873885]
[1749664504208,14.24873885,164.23,164.19,14.24873885]
[1749664504410,14.24873885,164.22,164.18,14.24873885]
[1749664505117,14.24873885,164.22,164.17,14.24873885]
[1749664505510,14.24873885,164.22,164.18,14.24873885]
[1749664506117,14.24873885,164.23,164.18,14.24873885]
[1749664506331,1.94472314,164.25,164.2,14.24873885]
[1749664506332,6.08856668,164.25,164.2,14.24873885]
[1749664506634,7.08,164.26,164.23,14.24873885]
[1749664506800,8.2639,164.3,164.25,14.24873885]
[1749664506801,1.6604,164.3,164.25,14.24873885]
[1749664507137,6.08632042,164.31,164.25,14.24873885]
[1749664507347,14.24873885,164.29,164.24,14.24873885]
[1749664507803,17.34184593,164.29,164.24,14.24873885]
[1749664508009,14.24873885,164.27,164.2,18.64964886]
[1749664508216,14.24873885,164.27,164.23,14.24873885]
[1749664508706,14.24873885,164.25,164.21,14.24873885]
[1749664508918,14.24873885,164.26,164.21,14.24873885]
[1749664509427,14.24873885,164.26,164.22,14.24873885]
[1749664509625,14.39090042,164.25,164.21,14.24873885]
[1749664509825,6.08716824,164.28,164.21,14.24873885]
[1749664510057,0.42648471,164.27,164.19,8.2777]
[1749664510227,14.24873885,164.25,164.19,8.2777]
[1749664510408,26.0,164.25,164.15,1.5907]
[1749664510612,14.24873885,164.2,164.16,14.24873885]
[1749664510806,0.14216157,164.23,164.16,14.24873885]
[1749664511007,14.24873885,164.21,164.15,1.5907]
[1749664511230,14.24873885,164.21,164.17,14.24873885]
[1749664512632,20.33850979,164.21,164.17,14.24873885]
[1749664513016,20.33850979,164.21,164.15,1.5907]
[1749664513216,6.08938514,164.23,164.17,14.24873885]
[1749664513515,14.24873885,164.22,164.17,14.24873885]
[1749664513923,6.08938514,164.23,164.18,14.24873885]
[1749664514125,14.24873885,164.22,164.18,14.24873885]
[1749664514323,14.24873885,164.22,164.17,14.24873885]
[1749664514722,14.24873885,164.22,164.18,14.24873885]
[1749664514928,14.24873885,164.25,164.21,14.24873885]
[1749664515127,14.24873885,164.25,164.2,14.24873885]
[1749664515531,14.24873885,164.24,164.2,14.24873885]
[1749664516038,14.24873885,164.22,164.19,24.34]
[1749664516223,14.24873885,164.23,164.19,38.58873885]
[1749664516415,14.24873885,164.24,164.2,14.24873885]
[1749664516619,6.08716824,164.28,164.22,14.24873885]
[1749664516844,14.24873885,164.27,164.22,14.24873885]
[1749664517142,14.24873885,164.24,164.2,14.24873885]
[1749664517916,14.24873885,164.24,164.19,24.34]
[1749664518120,14.24873885,164.25,164.2,14.24873885]
[1749664518538,14.24873885,164.25,164.21,14.24873885]
[1749664518733,14.24873885,164.26,164.21,14.24873885]
[1749664520831,6.08716824,164.28,164.21,14.24873885]
[1749664521032,14.24873885,164.26,164.21,14.24873885]
[1749664521538,14.24873885,164.27,164.22,14.24873885]
[1749664521746,9.18004284,164.29,164.22,14.24873885]
[1749664521942,14.24873885,164.27,164.22,14.24873885]
[1749664522144,6.08568646,164.32,164.22,1.6277]
[1749664522451,6.08568646,164.32,164.26,14.24873885]
[1749664522628,14.24873885,164.28,164.24,24.34]
[1749664522825,6.08568646,164.32,164.24,38.58873885]
[1749664523027,14.24873885,164.28,164.24,38.58873885]
[1749664523227,6.08640563,164.31,164.24,38.58873885]
[1749664523434,14.24873885,164.29,164.25,14.24873885]
[1749664523652,14.24873885,164.3,164.25,14.24873885]
[1749664523964,14.24873885,164.31,164.27,14.24873885]
[1749664524136,14.24873885,164.31,164.24,24.34]
[1749664524342,17.28914828,164.32,164.27,14.24873885]
[1749664524749,14.24873885,164.31,164.27,14.24873885]
[1749664524945,12.98543041,164.33,164.27,14.24873885]
[1749664525257,6.9,164.33,164.27,14.24873885]
[1749664525426,14.24873885,164.31,164.26,14.24873885]
[1749664525629,12.9853482,164.33,164.26,14.24873885]
[1749664525831,14.24873885,164.31,164.27,14.24873885]
[1749664526065,12.9853482,164.33,164.27,14.24873885]
[1749664526229,14.24873885,164.31,164.25,18.64964886]
[1749664526437,3.03736781,164.32,164.26,14.24873885]
[1749664526651,14.24873885,164.31,164.26,14.24873885]
[1749664526859,14.24873885,164.31,164.25,18.64964886]
[1749664527154,14.24873885,164.31,164.26,14.24873885]
[1749664527334,14.24873885,164.28,164.24,38.58873885]
[1749664527546,17.43112484,164.32,164.24,24.34]
[1749664527732,14.24873885,164.28,164.24,38.58873885]